lending/lending_fUSD_20250411
["ID","MTS","AMOUNT","RATE_DAILY","PERIOD"]
[357708820,1744366232195,-250.0,0.00019329,2]
[357708821,1744366232204,-476.41,0.00019446,2]
[357708822,1744366232213,-200.0,0.0001957,7]
[357708823,1744366232223,-200.0,0.00019601,2]
[357708824,1744366232232,-1000.0,0.00019679,2]
[357708825,1744366232241,-939.68,0.00019836,2]
[357708826,1744366232251,-617.0,0.00019899,2]
[357708827,1744366232261,-300.0,0.00019899,2]
[357708828,1744366232271,-12500.0,0.000199,2]
[357708829,1744366232280,-4953.7244,0.000199,2]
[357708830,1744366232290,-164.38441054,0.000199,2]
[357708831,1744366232300,-1500.0,0.000199,2]
[357708832,1744366232309,-254.79269599,0.000199,2]
[357708833,1744366232319,-5407.9812914,0.000199,2]
[357708834,1744366232332,-161.7931844,0.000199,2]
[357708835,1744366232342,-194.55527407,0.000199,2]
[357708836,1744366232351,-6079.15809812,0.000199,2]
[357708837,1744366232361,-222.46419201,0.000199,3]
[357708838,1744366232371,-194.09855862,0.000199,2]
[357708839,1744366232381,-2031.46797998,0.000199,2]
[357708840,1744366232391,-259.20324333,0.00019973,2]
[357708841,1744366232401,-500.0,0.00019973,2]
[357708842,1744366232411,-972.609,0.00019973,2]
[357708843,1744366232420,-190.24967948,0.0001999,2]
[357708844,1744366232430,-48087.11394314,0.0002,2]
[357708845,1744366232445,-534.93690693,0.0002,2]
[357708860,1744366238113,-3806.803,0.0002,2]
[357708862,1744366238224,-663.00944137,0.0002,2]
[357708863,1744366238442,-473.90159922,0.0002,2]
[357708864,1744366238453,-4070.42433121,0.0002,2]
[357708865,1744366238464,-442.20931429,0.0002,2]
[357708875,1744366240426,-2885.90769575,0.000199,2]
[357708876,1744366240591,-518.3514,0.000199,2]
[357708877,1744366240603,-1647.15595058,0.000199,2]
[357708912,1744366243659,-1153.487247,0.000199,2]
[357708915,1744366246186,-385.96323515,0.000199,2]
[357708916,1744366246198,-275.78638403,0.000199,2]
[357708917,1744366246207,-500.3666011,0.0002,2]
[357708918,1744366246297,-14245.07194306,0.0002,2]
[357708919,1744366246309,-5821.7216,0.0002,2]
[357708920,1744366246358,-2958.00000001,0.0002,2]
[357708921,1744366246370,-1824.20012,0.0002,2]
[357708922,1744366246382,-767.4050002,0.0002,2]
[357708923,1744366246393,-999.47561,0.0002,2]
[357708944,1744366335510,200.0,0.00044221,120]
[357708945,1744366336146,207.4,0.00044221,120]
[357708946,1744366336784,215.0738,0.00044221,120]
[357708947,1744366337474,223.0315306,0.00044221,120]
[357708948,1744366338114,231.28369723,0.00044221,120]
[357708949,1744366339009,239.84119403,0.00044221,120]
[357708950,1744366339443,248.71531821,0.00044221,120]
[357708951,1744366340084,257.91778498,0.00044221,120]
[357708952,1744366340768,267.46074303,0.00044221,120]
[357708953,1744366341623,277.35679052,0.00044221,120]
[357708954,1744366342782,287.61899177,0.00044221,120]
[357708955,1744366342937,298.26089446,0.00044221,120]
[357708956,1744366343515,309.29654756,0.00044221,120]
[357708957,1744366344160,320.74051982,0.00044221,120]
[357708958,1744366344892,332.60791905,0.00044221,120]
[357708959,1744366345512,344.91441206,0.00044221,120]
[357708960,1744366346156,357.6762453,0.00044221,120]
[357708961,1744366347016,370.91026638,0.00044221,120]
[357708962,1744366347647,384.63394623,0.00044221,120]
[357708963,1744366348258,384.63394623,0.00044221,120]
[357708970,1744366365807,206.3,0.00044221,30]
[357708971,1744366372975,2000.0,0.00044221,30]
[357708975,1744366634369,200.0,0.00044221,120]
[357708976,1744366635052,207.4,0.00044221,120]
[357708977,1744366636207,215.0738,0.00044221,120]
[357708978,1744366636846,223.0315306,0.00044221,120]
[357708979,1744366637616,231.28369723,0.00044221,120]
[357708980,1744366638252,239.84119403,0.00044221,120]
[357708981,1744366638901,248.71531821,0.00044221,120]
[357708982,1744366639621,257.91778498,0.00044221,120]
[357708983,1744366640258,267.46074303,0.00044221,120]
[357708984,1744366640891,277.35679052,0.00044221,120]
[357708985,1744366641552,287.61899177,0.00044221,120]
[357708986,1744366642306,298.26089446,0.00044221,120]
[357708987,1744366642976,309.29654756,0.00044221,120]
[357708988,1744366643650,320.74051982,0.00044221,120]
[357708989,1744366644335,332.60791905,0.00044221,120]
[357708991,1744366644966,344.91441206,0.00044221,120]
[357708992,1744366645613,357.6762453,0.00044221,120]
[357708993,1744366646683,370.91026638,0.00044221,120]
[357708994,1744366646914,384.63394623,0.00044221,120]
[357708995,1744366647538,384.63394623,0.00044221,120]
[357708996,1744366742402,1134.71,0.00027425,30]
[357708997,1744366937103,200.0,0.0004422,120]
[357708998,1744366937848,207.4,0.0004422,120]
[357708999,1744366938479,215.0738,0.0004422,120]
[357709000,1744366939108,223.0315306,0.0004422,120]
[357709001,1744366939738,231.28369723,0.0004422,120]
[357709002,1744366940385,239.84119403,0.0004422,120]
[357709003,1744366941061,248.71531821,0.0004422,120]
[357709004,1744366941726,257.91778498,0.0004422,120]
[357709005,1744366942392,267.46074303,0.0004422,120]
[357709006,1744366943012,277.35679052,0.0004422,120]
[357709007,1744366944152,287.61899177,0.0004422,120]
[357709008,1744366944312,298.26089446,0.0004422,120]
[357709009,1744366944946,298.26089446,0.0004422,120]
[357709010,1744366961472,150.0,0.0004422,30]
[357709011,1744367025607,-302.18893144,0.00018,2]
[357709012,1744367025631,-250.0,0.00019,2]
[357709013,1744367025654,-1210.8447955,0.00019399,2]
[357709014,1744367025678,-250.0,0.0001965,2]
[357709015,1744367025702,-250.0,0.000198,2]
[357709016,1744367025725,-12500.0,0.00019865,2]
[357709017,1744367025749,-12500.0,0.00019874,2]
[357709018,1744367025776,-2736.96627306,0.00019882,2]
[357709020,1744367137492,1220.31857361,9e-05,2]
[357709050,1744367328731,203.96911062,0.0002,120]
[357709055,1744367407041,500.0,0.0004422,30]
[357709075,1744367432186,-438.25924277,0.0001752,2]
[357709076,1744367432221,-455.41075723,0.0001752,2]
[357709077,1744367432230,-908.1335966,0.00019399,2]
[357709078,1744367432239,-1000.0,0.00019583,2]
[357709079,1744367432248,-181.82,0.00019659,2]
[357709080,1744367432258,-893.67,0.00019784,2]
[357709081,1744367432267,-200.0,0.00019812,7]
[357709082,1744367432276,-250.0,0.00019831,2]
[357709083,1744367432285,-160.44073719,0.00019847,2]
[357709084,1744367432294,-6463.80351364,0.00019847,2]
[357709085,1744367432305,-298.40740433,0.00019847,2]
[357709086,1744367432316,-503.4735659,0.00019847,2]
[357709087,1744367432327,-310.31,0.00019847,2]
[357709088,1744367432342,-4924.00551613,0.00019847,2]
[357709089,1744367432351,-12500.0,0.00019856,2]
[357709090,1744367432361,-250.0,0.00019869,2]
[357709091,1744367432374,-386.12352591,0.00019881,2]
[357709092,1744367432383,-5194.58196623,0.00019882,2]
[357709093,1744367432394,-3009.78166394,0.00019882,2]
[357709094,1744367432405,-450.0,0.00019882,2]
[357709095,1744367432415,-426.36644233,0.00019882,2]
[357709096,1744367432493,-682.30365444,0.00019882,2]
[357709097,1744367432503,-9134.61184363,0.00019891,2]
[357709098,1744367432513,-697.08410392,0.00019891,2]
[357709099,1744367432524,-574.01311803,0.00019891,2]
[357709100,1744367432535,-270.33973497,0.00019891,2]
[357709101,1744367432546,-387.14266875,0.00019891,2]
[357709102,1744367432556,-779.1,0.00019891,2]
[357709103,1744367432567,-657.7085307,0.00019891,2]
[357709104,1744367432576,-657.35061628,0.000199,2]
[357709105,1744367432588,-255.97559429,0.000199,2]
[357709150,1744367438387,-326.33573339,0.000199,2]
[357709151,1744367438399,-3275.02360615,0.000199,2]
[357709152,1744367438409,-1000.0,0.000199,2]
[357709153,1744367438419,-4810.12349423,0.000199,2]
[357709154,1744367438447,-1644.43223388,0.000199,2]
[357709155,1744367438459,-1903.46099217,0.000199,2]
[357709156,1744367438470,-1401.65547972,0.000199,2]
[357709157,1744367438479,-164.38441054,0.000199,2]
[357709158,1744367438489,-41.02112356,0.000199,2]
[357709159,1744367438501,-284.36119578,0.000199,2]
[357709160,1744367438510,-93.22665584,0.000199,2]
[357709161,1744367438616,-403.24149175,0.000199,2]
[357709162,1744367438731,-446.83270842,0.000199,2]
[357709188,1744367440466,-4217.54015466,0.000199,2]
[357709189,1744367440478,-1033.23521118,0.000199,2]
[357709190,1744367440491,-1740.0911033,0.000199,2]
[357709191,1744367440503,-1199.30233872,0.000199,2]
[357709192,1744367440699,-3366.53033613,0.000199,2]
[357709193,1744367440709,-203.8341568,0.000199,2]
[357709194,1744367440719,-7813.08688826,0.000199,2]
[357709195,1744367440761,-838.08245365,0.000199,2]
[357709207,1744367445057,-5400.25465064,0.000199,2]
[357709208,1744367445067,-5430.15768052,0.000199,2]
[357709209,1744367445077,-747.77187903,0.000199,2]
[357709210,1744367445087,-231.20590544,0.000199,2]
[357709211,1744367445097,-1354.31198666,0.000199,2]
[357709212,1744367445107,-165.32856909,0.00019973,2]
[357709213,1744367445117,-515.94759182,0.00019973,2]
[357709214,1744367445127,-501.26977671,0.00019973,2]
[357709215,1744367445136,-500.0,0.00019973,2]
[357709216,1744367445145,-153.609,0.00019973,2]
[357709218,1744367445155,-1685.997,0.00019973,2]
[357709219,1744367445164,-154.38679737,0.0001999,2]
[357709220,1744367445174,-1209.20085015,0.00019999,5]
[357709221,1744367445183,-13975.23008939,0.0002,2]
[357709222,1744367445195,-402.0340627,0.0002,2]
[357709251,1744367446139,-7461.74761781,0.0002,2]
[357709253,1744367446276,-3411.9260513,0.0002,2]
[357709254,1744367446338,-386.23999976,0.0002,2]
[357709255,1744367446356,-4151.763,0.0002,2]
[357709256,1744367446374,-495.71226737,0.0002,2]
[357709257,1744367446405,-4794.10916932,0.0002,2]
[357709258,1744367446521,-32179.40769798,0.0002,2]
[357709259,1744367446541,-2324.29556668,0.0002,2]
[357709260,1744367446581,-264.38400004,0.0002,2]
[357709261,1744367446601,-933.14790751,0.0002,2]
[357709263,1744367449912,2500.0,0.0004422,30]
[357709270,1744367751475,1059.06,0.00027425,30]
[357709271,1744367815900,1000.0,0.0004422,30]
[357709272,1744367820440,925.0,0.0004422,30]
[357709273,1744367891864,150.0,0.0004422,30]
[357709275,1744368097831,1003.0,0.00044219,120]
[357709276,1744368263229,2435.99002195,0.00044219,60]
[357709277,1744368282598,300.0,0.00044219,30]
[357709278,1744368617391,1054.60991808,0.00033,120]
[357709302,1744368631753,-804.3,0.00017459,2]
[357709305,1744368631763,-760.0025411,0.00019352,2]
[357709319,1744368631821,-239.9974589,0.00019352,2]
[357709322,1744368631830,-397.22991919,0.00019399,2]
[357709326,1744368631843,-283.87027821,0.00019399,2]
[357709329,1744368631852,-250.0,0.00019417,2]
[357709331,1744368631862,-200.0,0.00019557,7]
[357709334,1744368631872,-1000.0,0.00019598,2]
[357709336,1744368631882,-500.0,0.00019673,2]
[357709337,1744368631891,-245.93972179,0.00019673,2]
[357709339,1744368631903,-254.06027821,0.00019673,2]
[357709340,1744368631912,-152.45,0.00019688,2]
[357709341,1744368631922,-46.11476518,0.00019723,2]
[357709342,1744368631934,-492.56648881,0.00019723,2]
[357709343,1744368631946,-265.61874601,0.00019723,2]
[357709344,1744368631955,-653.81,0.00019854,2]
[357709345,1744368631966,-5800.0,0.00019875,2]
[357709346,1744368631975,-5800.0,0.00019883,2]
[357709347,1744368631985,-152.45,0.0001989,2]
[357709348,1744368631995,-5800.0,0.00019892,2]
[357709349,1744368632004,-1850.70515848,0.000199,2]
[357709350,1744368632016,-532.55684227,0.000199,2]
[357709351,1744368632050,-2626.1025926,0.000199,2]
[357709352,1744368632062,-261.94934089,0.000199,2]
[357709353,1744368632796,-503.85298373,0.000199,2]
[357709354,1744368633903,-153.90294356,0.000199,2]
[357709355,1744368637529,-2099.26922204,0.000199,2]
[357709356,1744368637642,-9160.29834109,0.000199,2]
[357709357,1744368637651,-4109.0101,0.000199,2]
[357709358,1744368637660,-5800.0,0.000199,2]
[357709359,1744368637669,-2465.05726604,0.000199,2]
[357709360,1744368637678,-3464.70487148,0.000199,2]
[357709489,1744368639842,-298.26089446,0.000199,2]
[357709505,1744368643014,-467.91820918,0.000199,2]
[357709506,1744368643024,-250.0,0.00019955,2]
[357709507,1744368643035,-500.0,0.00019973,2]
[357709508,1744368643045,-500.0,0.00019973,2]
[357709509,1744368643055,-318.56719676,0.00019973,2]
[357709510,1744368643065,-500.0,0.00019973,2]
[357709511,1744368643282,-503.85298373,0.00019973,2]
[357709512,1744368643291,-166.66,0.0001998,2]
[357709513,1744368643302,-1348.798,0.00019986,2]
[357709514,1744368643311,-153.609,0.00019986,2]
[357709515,1744368643321,-152.45,0.0001999,2]
[357709516,1744368643331,-152.45,0.0001999,2]
[357709517,1744368643341,-152.45,0.0001999,2]
[357709518,1744368643351,-152.45,0.0001999,2]
[357709519,1744368643360,-381840.02149819,0.0002,2]
[357709520,1744368643371,-406.83484863,0.0002,2]
[357709526,1744368645374,500.0,0.00044219,120]
[357709527,1744368645402,-258.3025,0.0002,2]
[357709529,1744368645573,-386.22000036,0.0002,2]
[357709530,1744368645585,-74120.79999999,0.0002,2]
[357709531,1744368645639,-1062.78207377,0.0002,2]
[357709533,1744368646203,-1324.98944616,0.0002,2]
[357709534,1744368725071,152.79870499,0.00044219,120]
[357709535,1744368736478,343.51260949,0.00044219,120]
[357709536,1744368766345,988.45,0.00027425,30]
[357709537,1744368819484,697495.71,0.00044219,30]
[357709542,1744369335322,500.0,0.00044263,30]
[357709549,1744369412535,169.07,0.0002846,120]
[357709550,1744369573165,3116.87,0.00044263,30]
[357709551,1744369584068,-468.62518637,0.00016989,2]
[357709552,1744369689401,1583.04580722,0.00044263,120]
[357709554,1744369825133,1000.0,0.00044263,30]
[357709556,1744369831634,-355.91999993,0.00016989,2]
[357709557,1744369831689,-6.5348137,0.00016989,2]
[357709558,1744369831698,-176.17011872,0.00018573,2]
[357709559,1744369831708,-346.73709081,0.00018604,2]
[357709560,1744369831747,-3416.54290919,0.00018604,2]
[357709561,1744369831756,-173.84203801,0.00018635,2]
[357709562,1744369831765,-500.0,0.00018654,2]
[357709563,1744369831775,-250.0,0.00018655,2]
[357709564,1744369831784,-1852.42,0.00018662,2]
[357709565,1744369831794,-4700.34,0.00018735,2]
[357709566,1744369831803,-250.0,0.00018773,2]
[357709567,1744369831813,-16291.98,0.00018951,2]
[357709568,1744369831822,-150.0,0.00018972,2]
[357709569,1744369831832,-169.07,0.00018973,2]
[357709570,1744369831841,-23900.0,0.00018973,2]
[357709571,1744369831851,-250.0,0.00019,2]
[357709572,1744369831860,-500.0,0.00019,2]
[357709573,1744369831870,-500.0,0.00019,2]
[357709574,1744369831879,-500.0,0.00019,2]
[357709575,1744369831888,-152.50288059,0.00019,2]
[357709576,1744369831897,-500.0,0.00019,2]
[357709578,1744369831906,-500.0,0.00019,2]
[357709580,1744369831915,-500.0,0.00019,2]
[357709581,1744369831924,-201.01860926,0.00019,2]
[357709584,1744369831936,-500.0,0.00019,2]
[357709585,1744369831945,-200.0,0.00019009,7]
[357709588,1744369831955,-176.17011871,0.00019113,2]
[357709589,1744369831965,-250.0,0.000192,2]
[357709592,1744369831975,-166.66,0.00019213,2]
[357709594,1744369831987,-831.08,0.00019253,2]
[357709596,1744369831996,-342.87,0.0001926,2]
[357709598,1744369832006,-555.0,0.00019291,2]
[357709600,1744369832015,-5131.72,0.00019356,2]
[357709602,1744369832024,-510.8251481,0.00019399,2]
[357709604,1744369832034,-250.0,0.00019405,2]
[357709606,1744369832043,-5480.0828,0.00019598,2]
[357709608,1744369832053,-5282.13,0.00019619,2]
[357709610,1744369832063,-200.0,0.00019619,2]
[357709612,1744369832071,-150.0,0.00019619,2]
[357709613,1744369832081,-200.0,0.00019678,2]
[357709614,1744369832091,-152.52,0.00019781,2]
[357709616,1744369832100,-973.1371,0.000198,2]
[357709618,1744369832109,-3912.4342,0.000198,2]
[357709620,1744369832118,-2500.0,0.000198,2]
[357709622,1744369832127,-219.91,0.00019892,2]
[357709624,1744369832136,-193.12767437,0.000199,2]
[357709626,1744369832146,-1000.0,0.000199,2]
[357709628,1744369832155,-157.2123,0.000199,2]
[357709630,1744369832164,-2700.2127,0.000199,2]
[357709632,1744369832173,-547.2377,0.000199,2]
[357709634,1744369832183,-164.38441054,0.000199,2]
[357709635,1744369832192,-367.51592072,0.000199,2]
[357709636,1744369832201,-195.47118532,0.000199,2]
[357709637,1744369832210,-310.04599977,0.000199,2]
[357709638,1744369832220,-175.05537358,0.000199,2]
[357709640,1744369832229,-1465.54343694,0.000199,2]
[357709641,1744369832239,-500.0,0.00019973,2]
[357709642,1744369832249,-215.13323513,0.00019973,2]
[357709643,1744369832258,-458.29738638,0.00019973,2]
[357709644,1744369832267,-505.13011497,0.00019973,2]
[357709645,1744369832278,-500.0,0.00019973,2]
[357709646,1744369832287,-500.0,0.00019973,2]
[357709647,1744369832296,-500.0,0.00019973,2]
[357709648,1744369832305,-501.30709231,0.00019973,2]
[357709649,1744369832314,-500.0,0.00019973,2]
[357709650,1744369832323,-506.71275121,0.00019973,2]
[357709651,1744369832333,-1000.0,0.00019973,2]
[357709652,1744369832342,-1000.0,0.00019973,2]
[357709653,1744369832351,-1000.0,0.00019973,2]
[357709654,1744369832360,-1000.0,0.00019973,2]
[357709655,1744369832369,-1000.0,0.00019973,2]
[357709656,1744369832378,-1000.0,0.00019973,2]
[357709657,1744369832387,-1000.0,0.00019973,2]
[357709658,1744369832397,-1000.0,0.00019973,2]
[357709659,1744369832406,-1000.0,0.00019973,2]
[357709660,1744369832416,-1000.0,0.00019973,2]
[357709661,1744369832425,-1000.0,0.00019973,2]
[357709662,1744369832434,-531.33720543,0.00019973,2]
[357709663,1744369832443,-500.26842887,0.00019973,2]
[357709664,1744369832452,-500.98982406,0.00019973,2]
[357709665,1744369832461,-3046.1233924,0.00019986,2]
[357709666,1744369832470,-25504.8467182,0.00019986,2]
[357709667,1744369832480,-192.263,0.00019988,2]
[357709668,1744369832489,-1932.782,0.00019988,2]
[357709669,1744369832498,-319.9776349,0.0001999,2]
[357709670,1744369832507,-319.9776349,0.0001999,2]
[357709671,1744369832516,-319.9776349,0.0001999,2]
[357709672,1744369832525,-358.36,0.0001999,2]
[357709673,1744369832534,-219.91,0.00019992,2]
[357709674,1744369832543,-300.0,0.00019999,2]
[357709675,1744369832553,-718.77629427,0.00019999,2]
[357709676,1744369832562,-760.0,0.0002,2]
[357709677,1744369832571,-1358456.14362055,0.0002,2]
[357709678,1744369832584,-254.43851059,0.0002,2]
[357709679,1744369832603,-2012.920012,0.0002,2]
[357709680,1744369832614,-980.83426641,0.0002,2]
[357709683,1744369837656,-358.36,0.0001999,2]
[357709684,1744369837666,-79.34943335,0.0001999,2]
[357709685,1744369837761,-279.01056665,0.0001999,2]
[357709686,1744369837771,-358.36,0.0001999,2]
[357709687,1744369837780,-91.55710294,0.0001999,2]
[357709688,1744369837815,-266.80289706,0.0001999,2]
[357709689,1744369837824,-109.21842304,0.0001999,2]
[357709690,1744369837922,-249.14157696,0.0001999,2]
[357709691,1744369837932,-358.36,0.0001999,2]
[357709692,1744369837941,-358.36,0.0001999,2]
[357709693,1744369837950,-358.36,0.0001999,2]
[357709694,1744369837962,-161.64796489,0.0001999,2]
[357709695,1744369837974,-196.71203511,0.0001999,2]
[357709696,1744369837984,-485.48545857,0.0002,2]
[357709697,1744369837997,-1116.91242994,0.0002,2]
[357709698,1744369838010,-17310.76819504,0.0002,2]
[357709699,1744369838028,-680.0,0.0002,2]
[357709700,1744369838038,-1951.65997,0.0002,2]
[357709701,1744369838050,-3559.80986231,0.0002,2]
[357709703,1744369839961,-4029065.71579078,0.0002,2]
[357709704,1744369840016,-3755.752,0.0002,2]
[357709705,1744369840123,-3857.67669308,0.0002,2]
[357709706,1744369840179,-1781.137005,0.0002,2]
[357709707,1744369840191,-1363.68834929,0.0002,2]
[357709708,1744369840202,-4592.27815191,0.0002,2]
[357709709,1744369840213,-1814.74099537,0.0002,2]
[357709710,1744369840224,-8062.05355451,0.0002,2]
[357709721,1744369843226,-792016.33389091,0.0002,2]
[357709724,1744369845631,-612.0,0.0002,2]
[357709725,1744369845642,-216.6039,0.0002,2]
[357709726,1744369845979,-8258.1,0.0002,2]
[357709727,1744369849563,1000.0,0.00044263,30]
[357709728,1744370043227,922.55,0.00027425,30]
[357709729,1744370066858,2421.16908119,0.00044263,30]
[357709730,1744370103537,1877.7,0.00044263,30]
[357709731,1744370105260,-383.1188611,0.00019399,2]
[357709732,1744370105283,-1195.28,0.00019631,2]
[357709733,1744370105308,-250.0,0.00019674,2]
[357709734,1744370105332,-2500.0,0.000198,2]
[357709735,1744370105356,-27023.22787382,0.000199,2]
[357709745,1744370921384,657.75592729,0.000149,2]
[357709766,1744371031957,-771.41,0.00017574,2]
[357709767,1744371031967,-54.2585761,0.00019,2]
[357709774,1744371037965,-250.0,0.00018938,2]
[357709775,1744371037976,-195.7414239,0.00019,2]
[357709776,1744371037985,-62.00762405,0.00019111,2]
[357709777,1744371037996,-90.51237595,0.00019111,2]
[357709778,1744371038008,-200.0,0.00019153,2]
[357709779,1744371038018,-200.0,0.00019248,2]
[357709780,1744371038027,-287.3391458,0.00019399,2]
[357709781,1744371038036,-503.60979678,0.00019608,2]
[357709782,1744371038129,-183.82020322,0.00019608,2]
[357709783,1744371038140,-200.0,0.00019727,7]
[357709784,1744371038149,-112.6691071,0.0001979,2]
[357709791,1744371040514,-887.3308929,0.0001979,2]
[357709793,1744371040524,-171.43,0.00019799,2]
[357709795,1744371040534,-447.2391071,0.00019838,2]
[357709830,1744371043437,-324.1708929,0.00019838,2]
[357709831,1744371043447,-14108.17968376,0.00019899,2]
[357709832,1744371043456,-12404.83760839,0.00019899,2]
[357709833,1744371043465,-5893.54541531,0.00019899,2]
[357709839,1744371046165,-3999.29383081,0.00019899,2]
[357709840,1744371046177,-977.55089476,0.00019899,2]
[357709841,1744371046205,-782.68279264,0.00019899,2]
[357709864,1744371147889,861.04,0.00027425,30]
[357709868,1744371544028,150.0,0.00044208,30]
[357709880,1744371886240,163.91373912,0.00044208,30]
[357709882,1744372232147,-694.26,0.00017143,2]
[357709883,1744372232156,-250.0,0.00018811,2]
[357709884,1744372232166,-159.47,0.00018914,2]
[357709885,1744372232175,-250.0,0.00019086,2]
[357709886,1744372232185,-171.43,0.00019116,2]
[357709887,1744372232194,-200.0,0.00019143,7]
[357709888,1744372232203,-169.07,0.00019208,2]
[357709889,1744372232213,-509.2286576,0.00019332,2]
[357709930,1744372238198,-490.7713424,0.00019332,2]
[357709931,1744372238208,-215.5043593,0.00019399,2]
[357709932,1744372238217,-694.26,0.00019407,2]
[357709933,1744372238227,-1646.85,0.00019407,2]
[357709934,1744372238237,-23481.11,0.00019407,2]
[357709935,1744372238247,-250.0,0.00019636,2]
[357709936,1744372238256,-2062.32,0.00019636,2]
[357709937,1744372238265,-657.7571,0.000198,2]
[357709938,1744372238275,-9999.04655419,0.000198,2]
[357709939,1744372238284,-12564.40450542,0.000198,2]
[357709940,1744372238295,-25707.62626392,0.000198,2]
[357709941,1744372238355,-11909.19598809,0.000198,2]
[357709942,1744372238366,-6151.40474257,0.000198,2]
[357709943,1744372238377,-3547.67000692,0.00019811,2]
[357709944,1744372238389,-6451.37654724,0.00019811,2]
[357709945,1744372238399,-2794.01304317,0.00019822,2]
[357709946,1744372238410,-7205.03351099,0.00019822,2]
[357709947,1744372238420,-9999.04655416,0.00019833,2]
[357709948,1744372238429,-1568.58868493,0.00019844,2]
[357709954,1744372240235,-1642.76910978,0.00019844,2]
[357709957,1744372240841,-636.0654447,0.00019844,2]
[357710003,1744372243717,-433.13754837,0.00019307,2]
[357710005,1744372243727,-6151.62331475,0.00019844,2]
[357710007,1744372243736,-9999.04655416,0.00019856,2]
[357710009,1744372243746,-1837.03798038,0.00019866,2]
[357710011,1744372243755,-9999.04655416,0.00019867,2]
[357710013,1744372243766,-500.0,0.00019873,2]
[357710016,1744372243776,-207.76280588,0.00019873,2]
[357710017,1744372243992,-9999.04655416,0.00019878,2]
[357710018,1744372244002,-16006.60399648,0.00019888,2]
[357710019,1744372244011,-9999.04655416,0.00019889,2]
[357710020,1744372244021,-300.0,0.00019898,3]
[357710021,1744372244031,-216.93239231,0.000199,2]
[357710022,1744372244040,-248.26405609,0.000199,2]
[357710023,1744372244050,-9999.04655416,0.000199,2]
[357710024,1744372244059,-206.69733318,0.000199,2]
[357710025,1744372244068,-977.02895796,0.000199,2]
[357710026,1744372244078,-500.0,0.00019973,2]
[357710027,1744372244087,-501.64443527,0.00019973,2]
[357710028,1744372244097,-245.57446254,0.00019973,2]
[357710029,1744372244106,-192.263,0.00019986,2]
[357710030,1744372244116,-1546.226,0.00019986,2]
[357710031,1744372244126,-352.6911748,0.00019986,2]
[357710032,1744372244136,-65542.1569564,0.00019986,2]
[357710033,1744372244146,-3459.4126433,0.00019986,2]
[357710034,1744372244155,-1202.1664382,0.00019986,2]
[357710035,1744372244165,-79037.20295532,0.0001999,2]
[357710036,1744372244174,-411.37299284,0.00019999,2]
[357710037,1744372244183,-662.0,0.0002,2]
[357710038,1744372244194,-138410.95863275,0.0002,2]
[357710039,1744372244204,-6281.9006532,0.0002,2]
[357710040,1744372244213,-242.0,0.0002,2]
[357710041,1744372244222,-35332.10849913,0.0002,2]
[357710042,1744372244234,-41100.0,0.0002,2]
[357710043,1744372244245,-370.27149559,0.0002,2]
[357710048,1744372246015,-44141.65816299,0.0002,2]
[357710049,1744372246028,-10203.52633935,0.0002,2]
[357710050,1744372246174,-167200.99498576,0.0002,2]
[357710051,1744372246188,-83355.85937382,0.0002,2]
[357710052,1744372334486,207.4,0.00044209,30]
[357710053,1744372390231,803.63,0.00027425,30]
[357710061,1744373135178,500.0,0.00044204,120]
[357710062,1744373332037,-641.05,0.00017198,2]
[357710063,1744373332061,-228.079051,0.00018832,2]
[357710064,1744373332085,-630.870949,0.00018927,2]
[357710074,1744373432538,-250.0,0.00018904,2]